{"text_format":"1","workbook":"xlsx","n_sheets":4,"sheets":["Synthèse","D.S.R.","B.B.R.","Adresse"],"not_rendered":{"charts":0,"images":5,"macros":1,"external_links":0,"defined_names":6,"comments":0,"pivot_tables":0},"unopened":[],"bounds":{"document_bytes":16777216,"sheet_cells":100000,"rows_first":2000,"rows_last":500,"rows_between":2000,"halvings":0,"cell_chars":16384,"cell_head_chars":4096},"cells_cut":0,"cells_raw":0,"read":"whole","date_system":"1900"}

{"sheet":"Synthèse","index":0,"n_rows":100,"n_cols":6,"rows_kept":100,"cut":false,"hidden":false,"merged":[[15,2,15,4],[72,1,72,2],[72,3,72,4],[36,1,36,2],[59,1,59,3],[22,1,22,3],[33,1,33,3],[99,0,99,5],[97,0,97,5],[96,0,96,5],[95,0,95,5],[92,2,92,5],[98,0,98,5],[6,0,7,5],[70,1,70,4],[71,1,71,2],[71,3,71,4],[0,1,0,5],[1,1,1,5],[2,1,2,5],[3,1,3,5],[4,1,4,5],[8,2,11,4],[23,3,23,5],[34,3,34,5],[60,3,60,5],[68,3,68,5],[19,2,19,4],[17,2,17,4],[91,2,91,5],[90,2,90,5],[89,2,89,5],[86,0,87,5],[75,0,81,5]]}
[null,"SERVICE PUBLIC DE WALLONIE"]
[null,"Direction Générale Routes et Bâtiments"]
[null,"Département des Expertises Techniques"]
[null,"Direction de la Recherche et du Contrôle Routier"]
[null,"Rue de l'industrie 27 - 1400 Nivelles    Tél 067/28 33 00 - Fax 067/21 64 01"]
[]
["Chapitre 5 : ESSAIS SUR LIANTS HYDROCARBONES "]
[]
["LABORATOIRE* :",null,"_"]
[]
[]
["*menu déroulant"]
[]
["Date d'essai :","du",null,"au"]
[]
["Référence de la demande :"]
[]
["Identification Échantillon :"]
[]
["Nature du Produit :"]
[]
[]
["1)  ","Pénétration (25°C - 100 g - 5 sec)"]
[null,"Type d’appareillage :"]
[null,"(manuel, automatique)"]
[]
[null,"Description","Norme","précision","Résultat"]
[null,"Mesure n°1","NBN-EN 1426","0,1mm"]
[null,"Mesure n°2","NBN-EN 1426","0,1mm"]
[null,"Mesure n°3","NBN-EN 1426","0,1mm"]
[]
[null,null,null,"Moyenne :",{"$f":"IF(E28=\"\",\"\",AVERAGE(E28:E30))","v":""},"1/10 mm"]
[]
["2)","Point de ramollissement Anneau et Bille"]
[null,"Type d’appareillage :"]
[]
[null,"(*W) = Eau distilée"]
[]
[null,"Description","Norme","précision","Résultat"]
[null,"T° de ramollissement (*w)","NBN-EN 1427","Voir t° norme"]
[null,"T° de ramollissement (*w)","NBN-EN 1427","Voir t° norme"]
[]
[null,null,null,"Moyenne :",{"$f":"IF(E40=\"\",\"\",AVERAGE(E40:E41))","v":""},"°C"]
[]
["4)","Retour élastique à 25°C"]
[]
[null,"Description","Norme","précision","Résultat"]
[null,"Retour élastique à 25°C","NBN-EN 13398",0.04]
[null,"Retour élastique à 25°C","NBN-EN 13398",0.04]
[]
[null,null,null,"Moyenne :",{"$f":"IF(E46=\"\",\"\",AVERAGE(E46:E47))","v":""}]
[]
["5)","Ductilité à 5°C"]
[]
[null,"Description","Norme","Unité","Résultat"]
[null,"Ductilité à 5°C","NBN 13589 / CME0836","cm"]
[null,"Ductilité à 5°C","NBN 13589 / CME0836","cm"]
[]
[]
["6)","Dynamic Shear Rheometer [DSR]  (EN 14770)"]
[null,"Type d’appareillage :",null,{"$f":"IF(D.S.R.!D23=\"\",\"\",D.S.R.!D23)","v":""}]
[]
[null,"            ","52°C - 1,6Hz","30°C - 10Hz","15°C - 10Hz"]
[null,"G (kPa)= ",{"$f":"IF(D.S.R.!D35=\"\",\"_\",D.S.R.!D35)","v":"_"},{"$f":"IF(D.S.R.!D47=\"\",\"_\",D.S.R.!D47)","v":"_"},{"$f":"IF(D.S.R.!D59=\"\",\"_\",D.S.R.!D59)","v":"_"}]
[null,"δ (°) =",{"$f":"IF(D.S.R.!G35=\"\",\"_\",D.S.R.!D35)","v":"_"},{"$f":"IF(D.S.R.!G47=\"\",\"_\",D.S.R.!G47)","v":"_"},{"$f":"IF(D.S.R.!G59=\"\",\"_\",D.S.R.!G59)","v":"_"}]
[]
[]
["7)","Bending Beam Rheometer [BBR] (EN 14771)"]
[null,"Type d’appareillage :",null,{"$f":"IF(B.B.R.!C37=\"\",\"\",B.B.R.!C37)","v":""}]
[]
[null,"Température critique T (°C)"]
[null,"S (60s) = 300MPa",null,"m (60s) = 0.300"]
[null,{"$f":"IF(B.B.R.!B61=\"\",\"_\",B.B.R.!B61)","v":"_"},null,{"$f":"IF(B.B.R.!D61=\"\",\"_\",B.B.R.!D61)","v":"_"}]
[]
["Commentaires:"]
[]
[]
[]
[]
[]
[]
[]
[]
["Remarque :"]
["Veuillez compléter UNIQUEMENT les cases jaunes"]
[]
["Fichier à renvoyer à l'adresse : resultats.laboratoire.dgo166@spw.wallonie.be"]
[]
[]
["Adresse(s) complémentaire(s) :"]
[]
[]
[]
["procédure d'envoi :"]
[]
["1) Vérifier que toutes les données demandées soient complétées"]
["2) Compléter le(s) adresse(s) e-mail complémentaire(s) "]
["3) Cliquer sur \"Valider et envoyer\" puis \"Confirmer\". "]
["4) Accepter ou refuser l'envoi du classeur sur la fenêtre d'envoi"]
["Une copie bloquée du fichier est envoyée aux adresses supra mentionnée."]

{"sheet":"D.S.R.","index":1,"n_rows":84,"n_cols":7,"rows_kept":84,"cut":false,"hidden":false,"merged":[[22,3,22,5],[31,1,31,3],[31,4,31,6],[32,4,32,6],[32,1,32,3],[19,2,19,5],[17,2,17,5],[15,2,15,5],[0,1,0,6],[1,1,1,6],[2,1,2,6],[3,1,3,6],[4,1,4,6],[6,0,7,6],[8,2,11,5],[43,1,43,3],[43,4,43,6],[83,0,83,6],[65,0,74,6],[55,1,55,3],[55,4,55,6],[44,1,44,3],[77,0,78,6],[56,1,56,3],[56,4,56,6],[44,4,44,6],[82,0,82,6]]}
[null,"SERVICE PUBLIC DE WALLONIE"]
[null,"Direction Générale Routes et Bâtiments"]
[null,"Département des Expertises Techniques"]
[null,"Direction de la Recherche et du Contrôle Routier"]
[null,"Rue de l'industrie 27 - 1400 Nivelles    Tél 067/28 33 00 - Fax 067/21 64 01"]
[]
["Chapitre 5 : ESSAIS SUR LIANTS HYDROCARBONES"]
[]
["LABORATOIRE* :",null,{"$f":"IF(Synthèse!C9=\"\",\"\",Synthèse!C9)","v":"_"}]
[]
[]
["*menu déroulant"]
[]
["Date d'essai :",null,"du",{"$f":"IF(Synthèse!C14=\"\",\"\",Synthèse!C14)","v":""},"au",{"$f":"IF(Synthèse!E14=\"\",\"\",Synthèse!E14)","v":""}]
[]
["Référence de la demande :",null,{"$f":"IF(Synthèse!C16=\"\",\"\",Synthèse!C16)","v":""}]
[]
["Identification Échantillon :",null,{"$f":"IF(Synthèse!C18=\"\",\"\",Synthèse!C18)","v":""}]
[]
["Nature du Produit :",null,{"$f":"IF(Synthèse!C20=\"\",\"\",Synthèse!C20)","v":""}]
[]
[]
[null,"Type d’appareillage D.S.R. :"]
[]
[]
[null,"Module complexe en cisaillement et angle de phase"]
[null,"Dynamic Shear Rheometer (EN 14770)"]
[]
[null,"Température :",null,"52°C"]
[null,"Fréquence :",null,"1,6Hz"]
[]
[null,"Module complexe en cisaillement",null,null,"Angle de phase"]
[null,"G* (kPa)",null,null,"d (°)"]
[null,"essais 1","essais 2","moyenne","essais 1","essais 2","moyenne"]
[null,null,null,{"$f":"IF(B35=\"\",\"\",AVERAGE(B35:C35))","v":""},null,null,{"$f":"IF(E35=\"\",\"\",AVERAGE(E35:F35))","v":""}]
[]
[]
[null,"Module complexe en cisaillement et angle de phase"]
[null,"Dynamic Shear Rheometer (EN 14770)"]
[]
[null,"Température :",null,"30°C"]
[null,"Fréquence :",null,"10Hz"]
[]
[null,"Module complexe en cisaillement",null,null,"Angle de phase"]
[null,"G* (kPa)",null,null,"d (°)"]
[null,"essais 1","essais 2","moyenne","essais 1","essais 2","moyenne"]
[null,null,null,{"$f":"IF(B47=\"\",\"\",AVERAGE(B47:C47))","v":""},null,null,{"$f":"IF(E47=\"\",\"\",AVERAGE(E47:F47))","v":""}]
[]
[]
[null,"Module complexe en cisaillement et angle de phase"]
[null,"Dynamic Shear Rheometer (EN 14770)"]
[]
[null,"Température :",null,"15°C"]
[null,"Fréquence :",null,"10Hz"]
[]
[null,"Module complexe en cisaillement",null,null,"Angle de phase"]
[null,"G (kPa)",null,null,"d (°)"]
[null,"essais 1","essais 2","moyenne","essais 1","essais 2","moyenne"]
[null,null,null,{"$f":"IF(B59=\"\",\"\",AVERAGE(B59:C59))","v":""},null,null,{"$f":"IF(E59=\"\",\"\",AVERAGE(E59:F59))","v":""}]
[]
[]
["Remarque :"]
["Veuillez compléter UNIQUEMENT les cases jaunes"]
[]
["Commentaires:"]
[]
[]
[]
[]
[]
[]
[]
[]
[]
[]
[]
[]
["Fichier à renvoyer à l'adresse : resultats.laboratoire.dgo166@spw.wallonie.be"]
[]
[]
["Procédure d'envoi :"]
[]
["1 ) Retourner dans la feuilles \"Synthèse\""]
["2) Suivre la procédure d'envoi indiquée dans la feuille"]

{"sheet":"B.B.R.","index":2,"n_rows":87,"n_cols":6,"rows_kept":87,"cut":false,"hidden":false,"merged":[[15,2,15,5],[17,2,17,5],[86,0,86,6],[59,3,59,4],[60,3,60,4],[60,1,60,2],[59,1,59,2],[58,1,58,4],[69,0,78,6],[19,2,19,5],[80,0,81,6],[36,2,36,4],[38,2,38,4],[48,2,48,4],[85,0,85,6],[6,0,7,6],[8,2,11,5],[0,1,0,6],[1,1,1,6],[2,1,2,6],[3,1,3,6],[4,1,4,6]]}
[null,"SERVICE PUBLIC DE WALLONIE"]
[null,"Direction Générale Routes et Bâtiments"]
[null,"Département des Expertises Techniques"]
[null,"Direction de la Recherche et du Contrôle Routier"]
[null,"Rue de l'industrie 27 - 1400 Nivelles    Tél 067/28 33 00 - Fax 067/21 64 01"]
[]
["Chapitre 5 : ESSAIS SUR LIANTS HYDROCARBONES"]
[]
["LABORATOIRE* :",null,{"$f":"IF(Synthèse!C9=\"\",\"\",Synthèse!C9)","v":"_"}]
[]
[]
["*menu déroulant"]
[]
["Date d'essai :",null,"du",{"$f":"IF(Synthèse!C14=\"\",\"\",Synthèse!C14)","v":""},"au",{"$f":"IF(Synthèse!E14=\"\",\"\",Synthèse!E14)","v":""}]
[]
["Référence de la demande :",null,{"$f":"IF(Synthèse!C16=\"\",\"\",Synthèse!C16)","v":""}]
[]
["Identification Échantillon :",null,{"$f":"IF(Synthèse!C18=\"\",\"\",Synthèse!C18)","v":""}]
[]
["Nature du Produit :",null,{"$f":"IF(Synthèse!C20=\"\",\"\",Synthèse!C20)","v":""}]
[]
["Veuillez compléter UNIQUEMENT les cases jaunes"]
[]
[]
[]
[]
[]
[]
[]
[]
[]
[]
[]
[null,"Module de rigidité à l'aide d'un rhéomètre à flexion de barreau"]
[null,"Bending Beam Rheometer ( EN 14771)"]
[]
[null,"Type d’appareillage B.B.R. :"]
[]
[null,null,"rigidité Smt (Mpa)"]
[null,"temps","T= -12°C","T= -18°C","T= -24°C"]
[null,8]
[null,15]
[null,30]
[null,60]
[null,120]
[null,240]
[]
[]
[null,null,"Penta m"]
[null,"temps","T= -12°C","T= -18°C","T= -24°C"]
[null,8]
[null,15]
[null,30]
[null,60]
[null,120]
[null,240]
[]
[]
[null,"Température critique T (°C)"]
[null,"S (60s) = 300MPa",null,"m (60s) = 0.300"]
[]
[]
[]
[]
[]
["Remarque :"]
["Veuillez compléter UNIQUEMENT les cases jaunes"]
[]
["Commentaires:"]
[]
[]
[]
[]
[]
[]
[]
[]
[]
[]
[]
["Fichier à renvoyer à l'adresse : resultats.laboratoire.dgo166@spw.wallonie.be"]
[]
[]
["Procédure d'envoi :"]
[]
["1) Retourner dans la feuille \"Synthèse\""]
["2) Suivre la procédure d'envoi indiquée dans la feuille "]

{"sheet":"Adresse","index":3,"n_rows":13,"n_cols":2,"rows_kept":13,"cut":false,"hidden":true,"merged":[]}
["Adresse:"]
["Type de marché:","Laboratoires:"]
["_","_"]
["STRUCTURANT","ABC Experts SA\nRue de l'Abbaye 92\n 4040 Herstal\nTél : 04 240 05 36  -  Fax : 04/246.91.41 \ninfo@abcexperts.be"]
["NON-STRUCTURANT","Association momentanée INISMA asbl - LABOMOSAN S.A.\nAvenue Gouverneur Cornez, 4\n7000 Mons\nTél: 065/40.34.34 - Fax :065/34.80.05\ninfo@bcrc.be"]
[null,"Association momentanée INISMA asbl - LABOTOUR S.A.\nAvenue Gouverneur Cornez, 4\n7000 Mons\nTél: 065/40.34.34 - Fax :065/34.80.05\ninfo@bcrc.be"]
[null,"INISMA asbl\nAvenue Gouverneur Cornez, 4\n7000 Mons\nTél: 065/40.34.34 - Fax :065/34.80.05\ninfo@bcrc.be"]
[null,"INISMA Bertrix asbl\nRue de la Bruyère, 31\n6880 Bertix\nTél: 061 /41.29.47\nj.mahin@bcrc.be"]
[null,"LABOMOSAN SA\nChemin du fond des coupes, 6\n5150 Floreffe\nTél: 081/44.61.16 \ninfo@labomosan.be\n"]
[]
[]
["(*W) = Eau distilée"]
["(*G) = Glycérol"]